fUSD/lending_fUSD_20240403
["ID","MTS","AMOUNT","RATE_DAILY","PERIOD"]
[321425394,1712182289998,-500.0,0.00054794,120]
[321425395,1712182290007,-1164.81,0.00054794,120]
[321425396,1712182290016,-503.94151964,0.00054794,120]
[321425397,1712182290026,-500.0,0.00054794,120]
[321425398,1712182290035,-1164.81,0.00054794,120]
[321425399,1712182290045,-1164.81,0.00054794,120]
[321425400,1712182290055,-2690.54,0.00054794,120]
[321425401,1712182290065,-1164.81,0.00054794,120]
[321425402,1712182290074,-500.0,0.00054794,120]
[321425403,1712182290084,-1164.81,0.00054794,120]
[321425404,1712182290093,-500.0,0.00054794,120]
[321425405,1712182290103,-1164.81,0.00054794,120]
[321425406,1712182290113,-1164.81,0.00054794,120]
[321425407,1712182290123,-1164.81,0.00054794,120]
[321425408,1712182290132,-500.0,0.00054794,120]
[321425409,1712182290142,-500.0,0.00054794,120]
[321425410,1712182290152,-1164.81,0.00054794,120]
[321425411,1712182290161,-1164.81,0.00054794,120]
[321425412,1712182290170,-1164.81,0.00054794,120]
[321425413,1712182290179,-1164.81,0.00054794,120]
[321425414,1712182290190,-1164.81,0.00054794,120]
[321425415,1712182290199,-1164.81,0.00054794,120]
[321425416,1712182290209,-500.0,0.00054794,120]
[321425417,1712182290218,-1164.81,0.00054794,120]
[321425418,1712182290228,-1164.81,0.00054794,120]
[321425419,1712182290238,-1164.81,0.00054794,120]
[321425420,1712182290247,-507.00045073,0.00054794,120]
[321425421,1712182290257,-1164.82768089,0.00054794,120]
[321425422,1712182290267,-500.0,0.00054794,120]
[321425423,1712182290277,-500.0,0.00054794,120]
[321425424,1712182290286,-594.67,0.00054794,120]
[321425425,1712182290297,-500.0,0.00054794,120]
[321425426,1712182290306,-2018.37,0.00054794,120]
[321425427,1712182290317,-1828.14,0.00054794,21]
[321425428,1712182290326,-500.0,0.00054794,120]
[321425429,1712182290335,-500.0,0.00054794,120]
[321425430,1712182290345,-872.43,0.00054794,120]
[321425431,1712182290355,-440.72411263,0.00054794,120]
[321425432,1712182290364,-500.0,0.00054794,120]
[321425433,1712182290374,-764.66,0.00054794,120]
[321425434,1712182290383,-3764.89,0.00054794,120]
[321425435,1712182290392,-1385.21,0.00054794,120]
[321425436,1712182290401,-2768.66,0.00054794,120]
[321425437,1712182290410,-5728.88,0.00054794,120]
[321425438,1712182290420,-1938.19,0.00054794,120]
[321425439,1712182290430,-500.0,0.00054794,120]
[321425440,1712182290440,-4469.47,0.00054794,120]
[321425441,1712182290449,-507.79268836,0.00054794,120]
[321425442,1712182290458,-998.02464732,0.00054794,30]
[321425443,1712182290467,-534.48868957,0.00054794,120]
[321425444,1712182290477,-634.12,0.00054794,120]
[321425445,1712182290487,-731.15,0.00054794,120]
[321425446,1712182290496,-2123.24,0.00054794,120]
[321425447,1712182290506,-504.27181023,0.00054794,120]
[321425448,1712182290515,-500.0,0.00054794,120]
[321425449,1712182290524,-500.0,0.00054794,120]
[321425450,1712182290534,-500.0,0.00054794,120]
[321425451,1712182290543,-1719.33,0.00054794,7]
[321425452,1712182290552,-500.0,0.00054794,120]
[321425453,1712182290562,-505.40498685,0.00054794,120]
[321425454,1712182290571,-500.0,0.00054794,120]
[321425455,1712182290580,-2253.41,0.00054794,120]
[321425456,1712182290590,-729.33,0.00054794,120]
[321425457,1712182290602,-2117.98,0.00054794,120]
[321425458,1712182290612,-429.48758441,0.00054794,120]
[321425459,1712182290621,-8698.46,0.00054794,120]
[321425460,1712182290630,-500.0,0.00054794,120]
[321425461,1712182290641,-500.0,0.00054794,120]
[321425462,1712182290651,-4924.96,0.00054794,120]
[321425463,1712182290660,-1332.76,0.00054794,120]
[321425464,1712182290672,-500.0,0.00054794,120]
[321425465,1712182290681,-3756.46,0.00054794,120]
[321425466,1712182290691,-500.0,0.00054794,2]
[321425467,1712182290701,-500.0,0.00054794,120]
[321425468,1712182290711,-512.32267161,0.00054794,120]
[321425469,1712182290720,-500.0,0.00054794,120]
[321425470,1712182290730,-5000.0,0.00054794,120]
[321425471,1712182290739,-500.0,0.00054794,120]
[321425472,1712182290749,-1367.26,0.00054794,120]
[321425473,1712182290758,-500.0,0.00054794,120]
[321425474,1712182290768,-500.0,0.00054794,120]
[321425475,1712182290777,-1037.04,0.00054794,120]
[321425476,1712182290787,-500.0,0.00054794,120]
[321425477,1712182290797,-165.99322339,0.00054794,120]
[321425478,1712182290807,-500.0,0.00054794,120]
[321425479,1712182290816,-3300.85,0.00054794,120]
[321425480,1712182290825,-616.76,0.00054794,120]
[321425481,1712182290835,-500.0,0.00054794,120]
[321425482,1712182290845,-779.43,0.00054794,120]
[321425483,1712182290854,-500.0,0.00054794,120]
[321425484,1712182290864,-500.0,0.00054794,120]
[321425485,1712182290873,-500.0,0.00054794,120]
[321425486,1712182290882,-4377.13,0.00054794,120]
[321425487,1712182290891,-1708.51,0.00054794,120]
[321425488,1712182290900,-1102.91,0.00054794,120]
[321425489,1712182290909,-500.0,0.00054794,120]
[321425490,1712182290918,-507.79816334,0.00054794,120]
[321425491,1712182290928,-1000.0,0.00054794,120]
[321425492,1712182290937,-3847.59,0.00054794,120]
[321425493,1712182290946,-500.0,0.00054794,120]
[321425494,1712182290956,-3847.59,0.00054794,120]
[321425495,1712182290965,-689.85,0.00054794,120]
[321425496,1712182290974,-3847.59,0.00054794,120]
[321425497,1712182290984,-500.0,0.00054794,120]
[321425498,1712182290994,-3847.59,0.00054794,120]
[321425499,1712182291003,-497.5252847,0.00054794,120]
[321425500,1712182291012,-3847.59,0.00054794,120]
[321425501,1712182291021,-510.88083977,0.00054794,120]
[321425502,1712182291030,-2700.2,0.00054794,120]
[321425503,1712182291039,-3847.59,0.00054794,120]
[321425504,1712182291048,-3847.59,0.00054794,120]
[321425505,1712182291057,-3847.59,0.00054794,120]
[321425506,1712182291066,-3847.59,0.00054794,120]
[321425507,1712182291075,-3847.59,0.00054794,120]
[321425508,1712182291084,-3847.59,0.00054794,120]
[321425509,1712182291094,-3847.59,0.00054794,120]
[321425510,1712182291103,-3847.59,0.00054794,120]
[321425511,1712182291112,-3847.59,0.00054794,120]
[321425512,1712182291121,-3847.59,0.00054794,120]
[321425513,1712182291130,-3847.59,0.00054794,120]
[321425514,1712182291139,-500.0,0.00054794,120]
[321425515,1712182291148,-2417.36,0.00054794,120]
[321425516,1712182291157,-3847.59,0.00054794,120]
[321425517,1712182291166,-500.0,0.00054794,120]
[321425518,1712182291177,-3847.59,0.00054794,120]
[321425519,1712182291187,-3847.59,0.00054794,120]
[321425520,1712182291196,-688.82,0.00054794,120]
[321425521,1712182291205,-500.0,0.00054794,120]
[321425522,1712182291215,-3847.59,0.00054794,120]
[321425523,1712182291226,-3847.59,0.00054794,120]
[321425524,1712182291235,-3847.59,0.00054794,120]
[321425525,1712182291245,-3847.59,0.00054794,120]
[321425526,1712182291254,-4108.23,0.00054794,120]
[321425527,1712182291263,-3847.80118821,0.00054794,120]
[321425528,1712182291273,-871.93,0.00054794,120]
[321425529,1712182291282,-1759.09,0.00054794,120]
[321425530,1712182291291,-1221.88,0.00054794,120]
[321425531,1712182291301,-500.0,0.00054794,120]
[321425532,1712182291310,-500.0,0.00054794,120]
[321425533,1712182291319,-500.0,0.00054794,120]
[321425534,1712182291328,-12173.89,0.00054794,120]
[321425535,1712182291338,-3860.65,0.00054794,120]
[321425536,1712182291347,-500.0,0.00054794,120]
[321425537,1712182291357,-664.94,0.00054794,120]
[321425538,1712182291366,-500.0,0.00054794,120]
[321425539,1712182291376,-500.0,0.00054794,120]
[321425540,1712182291385,-500.0,0.00054794,120]
[321425541,1712182291394,-2714.19,0.00054794,120]
[321425542,1712182291403,-500.0,0.00054794,120]
[321425543,1712182291413,-1000.0,0.00054794,60]
[321425544,1712182291422,-500.0,0.00054794,120]
[321425545,1712182291431,-3736.26,0.00054794,120]
[321425546,1712182291441,-500.0,0.00054794,120]
[321425547,1712182291450,-500.0,0.00054794,120]
[321425548,1712182291460,-5068.01,0.00054794,120]
[321425549,1712182291469,-500.0,0.00054794,120]
[321425550,1712182291479,-2396.76,0.00054794,120]
[321425551,1712182291488,-500.0,0.00054794,120]
[321425552,1712182291498,-3260.72,0.00054794,120]
[321425553,1712182291507,-500.0,0.00054794,120]
[321425554,1712182291517,-3118.27,0.00054794,120]
[321425555,1712182291527,-1703.09,0.00054794,120]
[321425556,1712182291537,-1109.31,0.00054794,120]
[321425557,1712182291547,-503.5870309,0.00054794,120]
[321425558,1712182291556,-500.0,0.00054794,120]
[321425559,1712182291566,-500.0,0.00054794,120]
[321425560,1712182291575,-2615.01,0.00054794,120]
[321425561,1712182291585,-500.0,0.00054794,120]
[321425562,1712182291594,-500.0,0.00054794,120]
[321425563,1712182291609,-500.0,0.00054794,120]
[321425564,1712182291618,-500.0,0.00054794,120]
[321425565,1712182291627,-500.0,0.00054794,120]
[321425566,1712182291637,-578.32,0.00054794,120]
[321425567,1712182291646,-2132.97,0.00054794,120]
[321425568,1712182291656,-352.83566176,0.00054794,2]
[321425569,1712182291666,-578.32,0.00054794,120]
[321425570,1712182291676,-2932.33,0.00054794,120]
[321425571,1712182291687,-500.0,0.00054794,120]
[321425572,1712182291699,-500.0,0.00054794,120]
[321425573,1712182291707,-500.0,0.00054794,120]
[321425574,1712182291717,-500.0,0.00054794,120]
[321425575,1712182291727,-505.15470122,0.00054794,120]
[321425576,1712182291737,-500.0,0.00054794,120]
[321425577,1712182291747,-3267.54,0.00054794,120]
[321425578,1712182291758,-500.0,0.00054794,2]
[321425579,1712182291768,-500.0,0.00054794,120]
[321425580,1712182291778,-500.0,0.00054794,120]
[321425581,1712182291787,-2295.65,0.00054794,120]
[321425582,1712182291797,-500.0,0.00054794,120]
[321425583,1712182291807,-4811.26,0.00054794,120]
[321425584,1712182291817,-500.0,0.00054794,120]
[321425585,1712182291826,-569.97,0.00054794,120]
[321425586,1712182291836,-500.0,0.00054794,120]
[321425587,1712182291846,-1121.83,0.00054794,120]
[321425588,1712182291856,-503.15429219,0.00054794,120]
[321425589,1712182291866,-502.37099176,0.00054794,120]
[321425590,1712182291876,-500.0,0.00054794,120]
[321425591,1712182291886,-5557.68,0.00054794,120]
[321425592,1712182291895,-960.97,0.00054794,120]
[321425593,1712182291905,-500.0,0.00054794,120]
[321425594,1712182291914,-2998.29,0.00054794,120]
[321425595,1712182291923,-13400.33,0.00054794,120]
[321425596,1712182291933,-13400.33,0.00054794,120]
[321425597,1712182291943,-506.5027619,0.00054794,120]
[321425598,1712182291952,-13400.33,0.00054794,120]
[321425599,1712182291962,-13400.33,0.00054794,120]
[321425600,1712182291972,-1978.76,0.00054794,120]
[321425601,1712182291981,-13400.33,0.00054794,120]
[321425602,1712182291991,-13400.33,0.00054794,120]
[321425603,1712182292001,-13400.33,0.00054794,120]
[321425604,1712182292011,-578.32,0.00054794,120]
[321425605,1712182292021,-578.32,0.00054794,120]
[321425606,1712182292031,-4668.01,0.00054794,120]
[321425607,1712182292041,-578.32,0.00054794,120]
[321425608,1712182292051,-578.32,0.00054794,120]
[321425609,1712182292061,-578.32,0.00054794,120]
[321425610,1712182292071,-500.0,0.00054794,120]
[321425611,1712182292080,-578.32,0.00054794,120]
[321425612,1712182292091,-3123.66,0.00054794,120]
[321425613,1712182292101,-543.17640315,0.00054794,120]
[321425614,1712182292111,-578.32,0.00054794,120]
[321425615,1712182292121,-578.32,0.00054794,120]
[321425616,1712182292130,-578.32,0.00054794,120]
[321425617,1712182292140,-578.32,0.00054794,120]
[321425618,1712182292150,-578.32,0.00054794,120]
[321425619,1712182292159,-578.32,0.00054794,120]
[321425620,1712182292168,-500.0,0.00054794,120]
[321425621,1712182292178,-578.32,0.00054794,120]
[321425622,1712182292187,-578.32,0.00054794,120]
[321425623,1712182292196,-2725.96,0.00054794,120]
[321425624,1712182292206,-578.32,0.00054794,120]
[321425625,1712182292215,-1215.44,0.00054794,120]
[321425626,1712182292224,-578.32,0.00054794,120]
[321425627,1712182292233,-500.0,0.00054794,120]
[321425628,1712182292243,-578.32,0.00054794,120]
[321425629,1712182292253,-578.32,0.00054794,120]
[321425630,1712182292262,-1020.9,0.00054794,120]
[321425631,1712182292274,-13400.33,0.00054794,120]
[321425632,1712182292283,-578.32,0.00054794,120]
[321425633,1712182292294,-1754.37,0.00054794,120]
[321425634,1712182292304,-13400.33,0.00054794,120]
[321425635,1712182292314,-578.32,0.00054794,120]
[321425636,1712182292324,-13400.33,0.00054794,120]
[321425637,1712182292333,-578.32,0.00054794,120]
[321425638,1712182292343,-508.18607914,0.00054794,120]
[321425639,1712182292352,-578.36906564,0.00054794,120]
[321425640,1712182292362,-13400.33,0.00054794,120]
[321425641,1712182292372,-13400.33,0.00054794,120]
[321425642,1712182292381,-13400.33,0.00054794,120]
[321425643,1712182292391,-500.0,0.00054794,120]
[321425644,1712182292401,-13400.33,0.00054794,120]
[321425645,1712182292410,-13400.33,0.00054794,120]
[321425646,1712182292420,-500.0,0.00054794,120]
[321425647,1712182292430,-13400.33,0.00054794,120]
[321425648,1712182292439,-8574.73,0.00054794,120]
[321425649,1712182292449,-13400.33,0.00054794,120]
[321425650,1712182292458,-13400.33,0.00054794,120]
[321425651,1712182292467,-500.0,0.00054794,120]
[321425652,1712182292477,-514.19292966,0.00054794,120]
[321425653,1712182292486,-13400.33,0.00054794,120]
[321425654,1712182292496,-13400.33,0.00054794,120]
[321425655,1712182292506,-503.01381616,0.00054794,120]
[321425656,1712182292515,-13400.33,0.00054794,120]
[321425657,1712182292525,-500.0,0.00054794,120]
[321425658,1712182292535,-13400.33,0.00054794,120]
[321425659,1712182292544,-500.0,0.00054794,2]
[321425660,1712182292554,-13400.33,0.00054794,120]
[321425661,1712182292563,-505.99150663,0.00054794,120]
[321425662,1712182292573,-13400.43215114,0.00054794,120]
[321425663,1712182292583,-500.0,0.00054794,120]
[321425664,1712182292593,-1714.24,0.00054794,120]
[321425665,1712182292606,-500.0,0.00054794,120]
[321425666,1712182292615,-984.67,0.00054794,120]
[321425667,1712182292626,-536.04926296,0.00054794,120]
[321425668,1712182292636,-2219.69,0.00054794,120]
[321425669,1712182292647,-3615.88,0.00054794,120]
[321425670,1712182292656,-529.930881,0.00054794,120]
[321425671,1712182292666,-500.0,0.00054794,120]
[321425672,1712182292678,-500.0,0.00054794,120]
[321425673,1712182292688,-504.15147546,0.00054794,120]
[321425674,1712182292699,-949.53,0.00054794,120]
[321425675,1712182292709,-514.46,0.00054794,120]
[321425676,1712182292719,-500.0,0.00054794,120]
[321425677,1712182292729,-500.0,0.00054794,2]
[321425678,1712182292739,-1000.0,0.00054795,120]
[321425679,1712182292750,-421.08106086,0.00054795,120]
[321425680,1712182292759,-150.0,0.00054795,120]
[321425681,1712182292769,-150.0,0.00054795,120]
[321425682,1712182292779,-191.47483542,0.00054795,120]
[321425683,1712182292788,-150.0,0.00054795,120]
[321425684,1712182292798,-150.0,0.00054795,120]
[321425685,1712182292808,-150.0,0.00054795,120]
[321425686,1712182292818,-150.0,0.00054795,120]
[321425687,1712182292827,-150.0,0.00054795,120]
[321425688,1712182292837,-150.0,0.00054795,120]
[321425689,1712182292847,-292.06712577,0.00054795,120]
[321425690,1712182292857,-250.0,0.00054795,2]
[321425691,1712182292866,-500.0,0.00054795,2]
[321425692,1712182292875,-500.0,0.00054795,2]
[321425693,1712182292885,-500.0,0.00054795,2]
[321425694,1712182292894,-500.0,0.00054795,2]
[321425695,1712182292904,-500.0,0.00054795,2]
[321425696,1712182292914,-500.0,0.00054795,2]
[321425697,1712182292923,-500.0,0.00054795,2]
[321425698,1712182292933,-500.0,0.00054795,2]
[321425699,1712182292942,-500.0,0.00054795,2]
[321425700,1712182292952,-780.0,0.00054795,2]
[321425701,1712182292961,-500.0,0.00054795,2]
[321425702,1712182292971,-500.0,0.00054795,2]
[321425703,1712182292982,-500.0,0.00054795,2]
[321425704,1712182292991,-500.0,0.00054795,2]
[321425705,1712182293001,-500.0,0.00054795,2]
[321425706,1712182293011,-500.0,0.00054795,2]
[321425707,1712182293020,-500.0,0.00054795,2]
[321425708,1712182293029,-500.0,0.00054795,2]
[321425709,1712182293039,-500.0,0.00054795,2]
[321425710,1712182293048,-500.0,0.00054795,2]
[321425711,1712182293058,-500.0,0.00054795,2]
[321425712,1712182293067,-500.0,0.00054795,2]
[321425713,1712182293077,-500.0,0.00054795,2]
[321425714,1712182293088,-500.0,0.00054795,2]
[321425715,1712182293097,-500.0,0.00054795,2]
[321425716,1712182293107,-500.0,0.00054795,2]
[321425717,1712182293117,-500.0,0.00054795,2]
[321425718,1712182293127,-500.0,0.00054795,2]
[321425719,1712182293137,-500.0,0.00054795,2]
[321425720,1712182293147,-500.0,0.00054795,2]
[321425721,1712182293157,-500.0,0.00054795,2]
[321425722,1712182293166,-500.0,0.00054795,2]
[321425723,1712182293177,-500.0,0.00054795,2]
[321425724,1712182293186,-500.0,0.00054795,2]
[321425725,1712182293195,-500.0,0.00054795,2]
[321425726,1712182293205,-500.0,0.00054795,2]
[321425727,1712182293214,-500.0,0.00054795,2]
[321425728,1712182293224,-500.0,0.00054795,2]
[321425729,1712182293233,-500.0,0.00054795,2]
[321425730,1712182293242,-500.0,0.00054795,2]
[321425731,1712182293252,-965.0,0.00054795,2]
[321425732,1712182293261,-500.0,0.00054795,2]
[321425733,1712182293270,-500.0,0.00054795,2]
[321425734,1712182293279,-523.0,0.00054795,2]
[321425735,1712182293288,-3003.65,0.00054795,120]
[321425736,1712182293297,-151.0,0.00054795,120]
[321425737,1712182293307,-151.0,0.00054795,120]
[321425738,1712182293317,-151.0,0.00054795,120]
[321425739,1712182293326,-151.0,0.00054795,120]
[321425740,1712182293335,-151.0,0.00054795,120]
[321425741,1712182293345,-151.0,0.00054795,120]
[321425742,1712182293355,-281.689325,0.00054795,120]
[321425743,1712182293365,-323.04118594,0.00054795,90]
[321425744,1712182293552,-17009.36284719,0.00054795,30]
[321425745,1712182293563,-86963.9174216,0.00054795,30]
[321425746,1712182293573,-1100.60960178,0.00054796,30]
[321425747,1712182293582,-1100.60960178,0.00054796,30]
[321425748,1712182293592,-163.05529451,0.00054797,30]
[321425749,1712182293607,-421.08106086,0.00054797,120]
[321425750,1712182293617,-191.47483542,0.00054797,120]
[321425751,1712182293627,-1100.60960178,0.00054797,30]
[321425752,1712182293636,-150.0,0.00054797,120]
[321425753,1712182293646,-131093.27756661,0.00054799,30]
[321425754,1712182293655,-1149.73400407,0.00054799,30]
[321425755,1712182293665,-163.05529451,0.000548,30]
[321425756,1712182293676,-17009.36284719,0.000548,30]
[321425757,1712182293686,-155.52082685,0.000548,120]
[321425758,1712182293695,-2593.63226754,0.000548,120]
[321425759,1712182293707,-1183.33275593,0.000548,30]
[321425760,1712182293716,-2650.0,0.000548,2]
[321425761,1712182293725,-2000.0,0.000548,30]
[321425762,1712182293735,-1630.15068739,0.000548,30]
[321425763,1712182293745,-180.31695646,0.000548,30]
[321425764,1712182293755,-2510.06822693,0.000548,30]
[321425765,1712182293764,-494.76644893,0.000548,30]
[321425766,1712182293774,-153.04872,0.000548,7]
[321425767,1712182293783,-2914.0,0.000548,120]
[321425768,1712182293793,-421.08106086,0.000548,120]
[321425769,1712182293803,-191.47483542,0.000548,120]
[321425770,1712182293812,-150.0,0.000548,120]
[321425771,1712182293822,-131093.27756661,0.00054801,30]
[321425772,1712182293831,-160.04740748,0.00054801,30]
[321425773,1712182293841,-421.08106086,0.00054803,120]
[321425774,1712182293851,-191.47483542,0.00054803,120]
[321425775,1712182293860,-150.0,0.00054803,120]
[321425776,1712182293869,-183.22184318,0.00054804,30]
[321425777,1712182293879,-150.0,0.00054804,120]
[321425778,1712182293889,-156.00999639,0.00054805,30]
[321425779,1712182293899,-887.77855872,0.00054805,30]
[321425780,1712182293909,-421.08106086,0.00054806,120]
[321425781,1712182293918,-191.47483542,0.00054806,120]
[321425782,1712182293929,-1149.73400407,0.00054806,30]
[321425783,1712182293939,-170.46692632,0.00054806,30]
[321425784,1712182293949,-150.0,0.00054806,120]
[321425785,1712182293958,-183.22184318,0.00054807,30]
[321425786,1712182293968,-9702.92785079,0.00054808,30]
[321425787,1712182293977,-156.00999639,0.00054808,30]
[321425788,1712182293987,-160.04740748,0.00054808,30]
[321425789,1712182293997,-1100.60960178,0.00054808,30]
[321425790,1712182294007,-131093.27756661,0.00054808,30]
[321425791,1712182294017,-421.08106086,0.00054808,120]
[321425792,1712182294027,-191.47483542,0.00054808,120]
[321425793,1712182294037,-150.0,0.00054809,120]
[321425794,1712182294046,-427.43056124,0.00054809,30]
[321425795,1712182294055,-170.46692632,0.00054809,30]
[321425796,1712182294064,-163.05529451,0.0005481,30]
[321425797,1712182294073,-1100.60960178,0.0005481,30]
[321425798,1712182294083,-500.0,0.00054811,30]
[321425799,1712182294092,-730.0,0.00054811,30]
[321425800,1712182294102,-788.0,0.00054811,30]
[321425801,1712182294111,-421.08106086,0.00054811,120]
[321425802,1712182294121,-191.47483542,0.00054811,120]
[321425803,1712182294131,-86963.9174216,0.00054812,30]
[321425804,1712182294140,-17009.36284719,0.00054812,30]
[321425805,1712182294150,-150.0,0.00054812,120]
[321425806,1712182294159,-150.0,0.00054813,120]
[321425807,1712182294168,-183.22184318,0.00054813,30]
[321425808,1712182294179,-1100.60960178,0.00054813,30]
[321425809,1712182294188,-421.08106086,0.00054814,120]
[321425810,1712182294198,-191.47483542,0.00054814,120]
[321425811,1712182294207,-86963.9174216,0.00054814,30]
[321425812,1712182294217,-887.77855872,0.00054815,30]
[321425813,1712182294226,-183.22184318,0.00054815,30]
[321425814,1712182294235,-86963.9174216,0.00054815,30]
[321425815,1712182294245,-163.05529451,0.00054815,30]
[321425816,1712182294254,-390.92222222,0.00054815,30]
[321425817,1712182294264,-150.0,0.00054815,120]
[321425818,1712182294273,-131093.27756661,0.00054816,30]
[321425819,1712182294283,-421.08106086,0.00054817,120]
[321425820,1712182294292,-191.47483542,0.00054817,120]
[321425821,1712182294301,-163.05529451,0.00054817,30]
[321425822,1712182294310,-9702.92785079,0.00054818,30]
[321425823,1712182294320,-427.43056124,0.00054818,30]
[321425824,1712182294329,-30465.30029255,0.00054818,30]
[321425825,1712182294339,-131093.27756661,0.00054818,30]
[321425826,1712182294349,-1149.73400407,0.00054818,30]
[321425827,1712182294358,-150.0,0.00054818,120]
[321425828,1712182294368,-157.33985932,0.00054819,60]
[321425829,1712182294377,-421.08106086,0.00054819,120]
[321425830,1712182294387,-191.47483542,0.00054819,120]
[321425831,1712182294397,-30465.30029255,0.0005482,30]
[321425832,1712182294406,-163.05529451,0.00054821,30]
[321425833,1712182294416,-150.0,0.00054821,120]
[321425834,1712182294426,-163.05529451,0.00054822,30]
[321425835,1712182294436,-150.0,0.00054822,120]
[321425836,1712182294445,-30465.30029255,0.00054822,30]
[321425837,1712182294454,-421.08106086,0.00054822,120]
[321425838,1712182294464,-191.47483542,0.00054822,120]
[321425839,1712182294474,-156.00999639,0.00054823,30]
[321425840,1712182294484,-728.82867782,0.00054824,30]
[321425841,1712182294494,-160.04740748,0.00054824,30]
[321425842,1712182294503,-150.0,0.00054824,120]
[321425843,1712182294513,-390.92222222,0.00054825,30]
[321425844,1712182294522,-728.82867782,0.00054825,30]
[321425845,1712182294532,-887.77855872,0.00054825,30]
[321425846,1712182294541,-1149.73400407,0.00054825,30]
[321425847,1712182294550,-421.08106086,0.00054825,120]
[321425848,1712182294559,-191.47483542,0.00054825,120]
[321425849,1712182294569,-150.0,0.00054827,120]
[321425850,1712182294578,-170.46692632,0.00054827,30]
[321425851,1712182294588,-887.77855872,0.00054828,30]
[321425852,1712182294602,-421.08106086,0.00054828,120]
[321425853,1712182294611,-191.47483542,0.00054828,120]
[321425854,1712182294620,-17009.36284719,0.0005483,30]
[321425855,1712182294629,-150.0,0.0005483,120]
[321425856,1712182294641,-421.08106086,0.0005483,120]
[321425857,1712182294650,-191.47483542,0.0005483,120]
[321425858,1712182294659,-150.0,0.00054831,120]
[321425859,1712182294668,-17009.36284719,0.00054831,30]
[321425860,1712182294680,-156.00999639,0.00054832,30]
[321425861,1712182294689,-150.0,0.00054833,120]
[321425862,1712182294698,-421.08106086,0.00054833,120]
[321425863,1712182294707,-191.47483542,0.00054833,120]
[321425864,1712182294717,-427.43056124,0.00054833,30]
[321425865,1712182294726,-1149.73400407,0.00054834,30]
[321425866,1712182294735,-86963.9174216,0.00054835,30]
[321425867,1712182294744,-421.08106086,0.00054836,120]
[321425868,1712182294753,-191.47483542,0.00054836,120]
[321425869,1712182294762,-150.0,0.00054836,120]
[321425870,1712182294771,-86963.9174216,0.00054836,30]
[321425871,1712182294780,-183.22184318,0.00054838,30]
[321425872,1712182294790,-1149.73400407,0.00054839,30]
[321425873,1712182294798,-421.08106086,0.00054839,120]
[321425874,1712182294808,-191.47483542,0.00054839,120]
[321425875,1712182294817,-150.0,0.00054839,120]
[321425876,1712182294826,-1468.74643894,0.00054839,30]
[321425877,1712182294836,-160.04740748,0.0005484,30]
[321425878,1712182294845,-150.0,0.0005484,120]
[321425879,1712182294854,-421.08106086,0.00054841,120]
[321425880,1712182294863,-191.47483542,0.00054841,120]
[321425881,1712182294873,-170.46692632,0.00054842,30]
[321425882,1712182294882,-150.0,0.00054842,120]
[321425883,1712182294891,-156.00999639,0.00054843,30]
[321425884,1712182294901,-887.77855872,0.00054843,30]
[321425885,1712182294911,-390.92222222,0.00054844,30]
[321425886,1712182294920,-183.22184318,0.00054844,30]
[321425887,1712182294931,-86963.9174216,0.00054844,30]
[321425888,1712182294941,-887.77855872,0.00054844,30]
[321425889,1712182294950,-421.08106086,0.00054844,120]
[321425890,1712182294960,-191.47483542,0.00054844,120]
[321425891,1712182294969,-9702.92785079,0.00054845,30]
[321425892,1712182294978,-427.43056124,0.00054845,30]
[321425893,1712182294988,-150.0,0.00054845,120]